bitfinex-derivatives/quotes_BTCF0:USTF0_20250904
["timestamp","ask_amount","ask_price","bid_price","bid_amount"]
[1757028952011,0.002,110900.0,110890.0,1.08213069]
[1757028954113,0.002,110900.0,110890.0,0.63116069]
[1757028954410,0.28552161,110900.0,110890.0,0.12047908]
[1757028954609,0.28552161,110900.0,110890.0,0.94975908]
[1757028956116,0.28552161,110900.0,110890.0,0.94927908]
[1757028958421,0.28552161,110900.0,110890.0,1.31007908]
[1757028958721,0.28552161,110900.0,110890.0,0.94927908]
[1757028960822,0.28552161,110900.0,110890.0,1.31007908]
[1757028961025,0.28552161,110900.0,110890.0,0.94927908]
[1757028961218,0.64632161,110900.0,110890.0,0.04682397]
[1757028961523,0.64632161,110900.0,110890.0,0.87610397]
[1757028962327,0.90791161,110900.0,110890.0,0.03303397]
[1757028962621,0.90791161,110900.0,110890.0,0.01172397]
[1757028964023,0.90791161,110900.0,110890.0,0.03303397]
[1757028964221,0.90791161,110900.0,110890.0,0.01172397]
[1757028964612,0.91928396,110900.0,110890.0,0.01172397]
[1757028964818,0.90791161,110900.0,110890.0,0.01172397]
[1757028966016,0.90791161,110900.0,110890.0,0.03303397]
[1757028967527,1.54791161,110900.0,110890.0,0.03303397]
[1757028967724,1.91791161,110900.0,110890.0,0.03303397]
[1757028967926,1.65723,110900.0,110890.0,0.04682397]
[1757028968126,1.91791161,110900.0,110890.0,0.04682397]
[1757028968826,1.91791161,110900.0,110890.0,0.03303397]
[1757028972522,1.91791161,110900.0,110890.0,0.01172397]
[1757028973524,2.44035105,110900.0,110890.0,0.00972397]
[1757028973725,2.43935105,110900.0,110890.0,0.00972397]
[1757028973925,2.43935105,110900.0,110880.0,0.00160649]
[1757028973926,0.00955,110890.0,110880.0,0.00160649]
[1757028974127,2.7045907,110890.0,110880.0,0.00160649]
[1757028974525,2.7045907,110890.0,110880.0,0.02291649]
[1757028974730,2.7045907,110890.0,110880.0,0.00160649]
[1757028974924,2.96563105,110890.0,110880.0,0.00160649]
[1757028975527,2.7055907,110890.0,110880.0,0.00360649]
[1757028976229,2.96763105,110890.0,110880.0,0.00360649]
[1757028976423,2.7065907,110890.0,110880.0,0.00360649]
[1757028976931,2.7055907,110890.0,110880.0,0.00360649]
[1757028977233,2.7055907,110890.0,110880.0,0.00160649]
[1757028977429,2.7075907,110890.0,110880.0,0.00160649]
[1757028978120,3.21863105,110890.0,110880.0,0.00160649]
[1757028978435,3.29058705,110890.0,110880.0,0.00160649]
[1757028978633,0.03215,110870.0,110850.0,0.9849431]
[1757028978929,1.40315,110870.0,110860.0,0.02298]
[1757028979131,1.40295,110870.0,110860.0,0.02298]
[1757028979333,1.40295,110870.0,110860.0,0.27298]
[1757028979634,1.40295,110870.0,110850.0,0.02431323]
[1757028979834,0.5444407,110860.0,110850.0,0.03677]
[1757028980136,1.5044407,110860.0,110850.0,0.03677]
[1757028980632,1.8652407,110860.0,110850.0,0.03677]
[1757028981026,1.8672407,110860.0,110850.0,0.03677]
[1757028981529,1.8788307,110860.0,110850.0,0.02298]
[1757028981727,0.00955,110850.0,110840.0,2.59711733]
[1757028982031,1.8647907,110850.0,110840.0,0.94804241]
[1757028982233,1.8647907,110850.0,110840.0,0.02349]
[1757028982421,1.60375035,110850.0,110840.0,0.02349]
[1757028983024,1.60375035,110850.0,110840.0,0.03629]
[1757028983628,1.60475035,110850.0,110840.0,0.03629]
[1757028984226,1.60675035,110850.0,110840.0,0.03629]
[1757028984633,1.59720035,110850.0,110840.0,0.03629]
[1757028984827,1.59720035,110850.0,110840.0,0.03578]
[1757028985023,1.59720035,110850.0,110840.0,0.29682035]
[1757028985634,1.59720035,110850.0,110840.0,0.03578]
[1757028986138,1.23640035,110850.0,110840.0,0.03578]
[1757028986336,1.23640035,110850.0,110840.0,0.46874888]
[1757028986528,1.23640035,110850.0,110840.0,0.39658]
[1757028986932,1.23640035,110850.0,110840.0,0.65762035]
[1757028987642,1.23640035,110850.0,110840.0,0.39658]
[1757028988634,1.23640035,110850.0,110840.0,0.65762035]
[1757028989638,1.23640035,110850.0,110840.0,0.39658]
[1757028990034,0.953,110850.0,110840.0,1.53853823]
[1757028990333,0.925,110850.0,110840.0,2.23305429]
[1757028990527,0.904,110850.0,110840.0,1.96875429]
[1757028990732,0.897,110850.0,110840.0,1.62875429]
[1757028990932,0.897,110850.0,110840.0,1.70041082]
[1757028990933,0.883,110850.0,110840.0,1.70041082]
[1757028991132,0.869,110850.0,110840.0,1.70041082]
[1757028991335,0.862,110850.0,110840.0,1.70041082]
[1757028991842,0.855,110850.0,110840.0,1.70041082]
[1757028992139,0.85372,110850.0,110840.0,2.01041082]
[1757028992535,0.85372,110850.0,110840.0,2.05041082]
[1757028992939,0.85372,110850.0,110840.0,2.20001082]
[1757028993141,0.85372,110850.0,110840.0,3.94325082]
[1757028995645,0.85372,110850.0,110840.0,3.59325082]
[1757028995843,0.85372,110850.0,110840.0,3.93325082]
[1757028997333,0.85372,110850.0,110840.0,3.15012977]
[1757028997539,0.85372,110850.0,110840.0,3.93325082]
[1757028998037,0.85372,110850.0,110840.0,3.85755082]
[1757028998249,0.85372,110850.0,110840.0,4.17273082]
[1757028999541,0.85372,110850.0,110840.0,4.43703082]
[1757029001447,0.85372,110850.0,110840.0,4.43699082]
[1757029003235,0.85372,110850.0,110840.0,4.43695082]
[1757029004041,0.85372,110850.0,110840.0,3.60755082]
[1757029004340,0.85372,110850.0,110840.0,4.43695082]
[1757029007451,0.85372,110850.0,110840.0,4.59637248]
[1757029009955,0.85372,110850.0,110840.0,4.43695082]
[1757029010651,0.85372,110850.0,110840.0,3.60755082]
[1757029010857,0.85372,110850.0,110840.0,4.74687082]
[1757029014560,0.85372,110850.0,110840.0,4.43687082]
[1757029014765,0.85372,110850.0,110840.0,4.76687082]
[1757029019559,0.85372,110850.0,110840.0,4.92629248]
[1757029020457,0.7993652,110850.0,110840.0,4.59629248]
[1757029020664,0.953,110850.0,110840.0,4.88629248]
[1757029022065,0.953,110850.0,110840.0,4.72687082]
[1757029024760,0.953,110850.0,110840.0,4.93244451]
[1757029024955,0.03395,110890.0,110840.0,5.41946451]
[1757029025162,0.76395,110890.0,110880.0,0.8828807]
[1757029025467,1.01,110890.0,110880.0,2.1522189]
[1757029025767,1.01,110890.0,110880.0,2.08112172]
[1757029025962,1.01,110890.0,110880.0,2.51302422]
[1757029026267,1.011,110890.0,110880.0,2.60320242]
[1757029026970,1.012,110890.0,110880.0,2.60420242]
[1757029027167,1.014,110890.0,110880.0,2.51398422]
[1757029028157,1.012,110890.0,110880.0,2.60416242]
[1757029028359,1.013,110890.0,110880.0,2.60416242]
[1757029028669,1.011,110890.0,110880.0,2.60416242]
[1757029028861,1.011,110890.0,110880.0,2.60516242]
[1757029029058,1.012,110890.0,110880.0,2.60516242]
[1757029029666,1.01,110890.0,110880.0,2.60316242]
[1757029029867,1.012,110890.0,110880.0,2.60616242]
[1757029031371,1.012,110890.0,110880.0,2.62443728]
[1757029031760,1.012,110890.0,110880.0,2.62435728]
[1757029033572,1.012,110890.0,110880.0,2.36317822]
[1757029033773,1.012,110890.0,110880.0,2.10227658]
[1757029034162,1.012,110890.0,110880.0,2.36317822]
[1757029034971,1.012,110890.0,110880.0,2.62407986]
[1757029035168,1.012,110890.0,110880.0,2.87407986]
[1757029035366,1.012,110890.0,110880.0,3.59797986]
[1757029035568,1.012,110890.0,110880.0,3.28797986]
[1757029037471,1.012,110890.0,110880.0,3.57797986]
[1757029037965,0.99073864,110890.0,110880.0,3.60367986]
[1757029038275,0.96198864,110890.0,110880.0,3.60351986]
[1757029039673,0.422,110890.0,110880.0,3.60351986]
[1757029039967,0.422,110890.0,110880.0,1.42283658]
[1757029039968,0.322,110890.0,110880.0,1.42283658]
[1757029040170,0.98551,110890.0,110880.0,2.01189838]
[1757029040368,0.98551,110890.0,110880.0,2.36297822]
[1757029040567,0.01551,110890.0,110880.0,2.36297822]
[1757029041172,0.002,110890.0,110880.0,1.53413822]
[1757029041375,0.002,110890.0,110880.0,2.27280002]
[1757029042273,0.01551,110890.0,110880.0,1.18305838]
[1757029042572,0.01551,110890.0,110880.0,1.44396002]
[1757029042876,0.01551,110890.0,110880.0,2.36293822]
[1757029045677,0.002,110890.0,110880.0,2.36293822]
[1757029046282,0.002,110890.0,110880.0,2.62383986]
[1757029047773,0.002,110890.0,110880.0,2.77343986]
[1757029047969,0.0002,110900.0,110890.0,0.0901704]
[1757029048169,0.01305,110920.0,110890.0,1.06187204]
[1757029048170,0.03636,110910.0,110890.0,1.06187204]
[1757029048374,0.03636,110910.0,110900.0,0.82872]
[1757029048577,0.54706164,110910.0,110900.0,0.82872]
[1757029048878,0.29706164,110910.0,110900.0,1.17872]
[1757029050081,0.03916,110910.0,110900.0,1.17972]
[1757029050467,0.26651,110910.0,110900.0,1.90222266]
[1757029050668,0.003,110910.0,110900.0,1.07350266]
[1757029050879,0.01651,110910.0,110900.0,1.81202046]
[1757029051478,0.01851,110910.0,110900.0,1.81302046]
[1757029051980,0.01851,110910.0,110900.0,1.88686699]
[1757029052473,0.005,110910.0,110900.0,1.88686699]
[1757029052682,0.005,110910.0,110900.0,1.97702919]
[1757029052978,0.005,110910.0,110900.0,2.06719645]
[1757029053366,0.005,110910.0,110900.0,2.31719645]
[1757029053970,0.005,110910.0,110900.0,2.46679645]
[1757029054372,0.005,110910.0,110900.0,2.46675645]
[1757029054770,0.005,110910.0,110900.0,2.62903415]
[1757029054977,0.005,110910.0,110900.0,2.89333415]
[1757029056284,0.005,110910.0,110900.0,2.88993579]
[1757029056482,0.0002,110920.0,110910.0,0.0901541]
[1757029056682,0.37431,110940.0,110910.0,0.0901541]
[1757029056683,0.0002,110930.0,110920.0,0.090146]
[1757029056884,0.01371,110940.0,110920.0,1.89044764]
[1757029057183,0.03636,110940.0,110930.0,0.26090164]
[1757029057382,0.03616,110940.0,110930.0,0.61090164]
[1757029057888,0.03616,110940.0,110930.0,0.97170164]
[1757029058773,0.04116,110940.0,110930.0,0.97270164]
[1757029059886,0.04216,110940.0,110930.0,0.97470164]
[1757029060187,0.03816,110940.0,110930.0,0.97370164]
[1757029060486,0.03616,110930.0,110920.0,0.27927137]
[1757029060684,0.03316,110930.0,110920.0,1.46260137]
[1757029061291,0.03216,110930.0,110920.0,1.46260137]
[1757029061985,0.03216,110930.0,110920.0,1.82340137]
[1757029062186,0.03216,110930.0,110920.0,1.46256137]
[1757029062487,0.03116,110930.0,110920.0,1.46256137]
[1757029062682,0.03116,110930.0,110920.0,1.82336137]
[1757029062985,0.03116,110930.0,110920.0,1.46256137]
[1757029063180,0.03216,110930.0,110920.0,1.46256137]
[1757029063377,0.03316,110930.0,110920.0,1.46356137]
[1757029064782,0.03316,110930.0,110920.0,0.63508137]
[1757029065181,0.03316,110930.0,110920.0,1.46352137]
[1757029066990,0.03316,110930.0,110920.0,0.63508137]
[1757029067191,0.03316,110930.0,110920.0,1.46348137]
[1757029067890,0.03316,110930.0,110920.0,0.63508137]
[1757029068090,0.03316,110930.0,110920.0,1.46348137]
[1757029068989,0.03316,110930.0,110920.0,0.63508137]
[1757029069191,0.03316,110930.0,110920.0,1.46344137]
[1757029069391,0.03316,110930.0,110920.0,1.91438737]
[1757029069392,0.01051,110930.0,110920.0,1.91438737]
[1757029070583,0.002,110930.0,110920.0,1.91438737]
[1757029071489,0.01593,110930.0,110920.0,1.91438737]
[1757029072895,0.002,110930.0,110920.0,1.91438737]
[1757029073287,0.01371,110940.0,110920.0,2.00453837]
[1757029073488,0.01371,110940.0,110930.0,0.62971164]
[1757029073685,0.01351,110940.0,110930.0,0.97971164]
[1757029073887,0.03509,110940.0,110930.0,0.97971164]
[1757029074996,0.03709,110940.0,110930.0,0.97971164]
[1757029075393,0.03809,110940.0,110930.0,0.97971164]
[1757029075593,0.01451,110940.0,110930.0,0.97971164]
[1757029075795,0.01751,110940.0,110930.0,0.98071164]
[1757029075997,0.01651,110940.0,110930.0,0.98071164]
[1757029076193,0.01451,110940.0,110930.0,0.97971164]
[1757029076385,0.01651,110940.0,110930.0,0.98071164]
[1757029078393,0.003,110940.0,110930.0,0.98071164]
[1757029078590,0.003,110940.0,110930.0,1.07084954]
[1757029079896,0.003,110940.0,110930.0,1.32084954]
[1757029080294,0.01371,110950.0,110930.0,1.41099241]
[1757029080494,0.01371,110950.0,110940.0,1.45791164]
[1757029080798,0.01351,110960.0,110940.0,1.89804034]
[1757029080799,0.01371,110960.0,110940.0,1.89804034]
[1757029081001,0.03529,110960.0,110950.0,0.26891164]
[1757029081300,0.03509,110960.0,110950.0,0.58891164]
[1757029082392,0.04109,110960.0,110950.0,0.58991164]
[1757029082794,0.04109,110960.0,110950.0,0.60029505]
[1757029083395,0.04309,110960.0,110950.0,0.60129505]
[1757029083995,0.04309,110960.0,110950.0,0.69141665]
[1757029084189,0.04309,110960.0,110950.0,1.05221665]
[1757029085100,0.55399164,110960.0,110950.0,0.02039341]
[1757029085395,0.91479164,110960.0,110950.0,1.19847341]
[1757029085601,0.91479164,110960.0,110950.0,0.02039341]
[1757029085894,0.91479164,110960.0,110950.0,0.002]
[1757029086100,0.91479164,110960.0,110950.0,0.76548]
[1757029086402,0.91479164,110960.0,110950.0,0.002]
[1757029087996,0.94112007,110960.0,110950.0,0.002]
[1757029092306,0.03551,110940.0,110930.0,0.47074]
[1757029092504,0.03551,110930.0,110920.0,0.83921]
[1757029092706,0.65721164,110930.0,110920.0,0.95921]
[1757029092905,0.65721164,110930.0,110920.0,1.18921]
[1757029093207,0.65721164,110930.0,110920.0,0.94921]
[1757029093400,0.65721164,110930.0,110920.0,1.18921]
[1757029093596,0.65721164,110930.0,110920.0,0.83921]
[1757029094196,0.65721164,110930.0,110920.0,1.18921]
[1757029094402,0.65621164,110930.0,110920.0,1.18921]
[1757029094605,0.65621164,110930.0,110920.0,0.91921]
[1757029095304,0.65721164,110930.0,110920.0,0.92021]
[1757029095500,0.65709088,110930.0,110920.0,1.18099088]
[1757029095700,0.65709088,110930.0,110920.0,1.18199088]
[1757029097114,0.65709088,110930.0,110920.0,1.11236845]
[1757029097313,0.65709088,110930.0,110920.0,1.16236845]
[1757029097613,0.39631,110930.0,110920.0,1.46236845]
[1757029097911,0.65709088,110930.0,110920.0,1.46236845]
[1757029100834,0.65709088,110930.0,110920.0,0.89029757]
[1757029101133,0.65709088,110930.0,110920.0,0.82992]
[1757029102027,0.39631,110930.0,110920.0,0.82992]
[1757029102230,0.65709088,110930.0,110920.0,0.82992]
[1757029104030,0.65709088,110930.0,110920.0,0.84273]
[1757029104432,0.65709088,110930.0,110920.0,0.85270035]
[1757029104627,0.65709088,110930.0,110920.0,0.84273]
[1757029107630,0.65709088,110930.0,110920.0,0.82992]
[1757029107831,0.91787176,110930.0,110920.0,0.82992]
[1757029108431,0.91787176,110930.0,110920.0,0.84273]
[1757029108836,0.91787176,110930.0,110920.0,0.82992]
[1757029109335,0.91787176,110930.0,110920.0,0.82984]
[1757029110222,1.16787176,110930.0,110920.0,0.002]
[1757029111637,0.64631,110930.0,110920.0,0.002]
[1757029111938,1.16787176,110930.0,110920.0,0.002]
[1757029124344,0.65709088,110930.0,110920.0,0.01481]
[1757029124747,0.65709088,110930.0,110920.0,0.27559088]
[1757029125144,0.39631,110930.0,110920.0,0.52559088]
[1757029125345,0.65709088,110930.0,110920.0,0.52559088]
[1757029127453,0.29629088,110930.0,110920.0,0.52559088]
[1757029128253,0.29629088,110930.0,110920.0,0.26481]
[1757029128453,0.29629088,110930.0,110920.0,0.52559088]
[1757029130158,0.03551,110930.0,110920.0,1.14717176]
[1757029130452,0.03551,110930.0,110920.0,0.78637176]
[1757029130655,0.03551,110930.0,110920.0,0.52559088]
[1757029131355,0.03551,110930.0,110920.0,0.26481]
[1757029131555,0.29629088,110930.0,110920.0,0.52559088]
[1757029133746,0.29629088,110930.0,110920.0,1.35311088]
[1757029141269,0.29629088,110930.0,110920.0,1.10311088]
[1757029143267,0.29629088,110930.0,110920.0,1.46391088]
[1757029143660,0.29629088,110930.0,110920.0,1.72469176]
[1757029143964,0.001,110930.0,110920.0,1.97469176]
[1757029144562,0.001,110930.0,110920.0,2.06483796]
[1757029146667,0.001,110930.0,110920.0,2.06451796]
[1757029148871,0.01474,110930.0,110920.0,2.06451796]
[1757029151074,0.001,110930.0,110920.0,2.06451796]
[1757029152272,0.001,110930.0,110920.0,1.81451796]
[1757029152576,0.001,110930.0,110920.0,1.90466896]
[1757029153071,0.001,110930.0,110920.0,1.92286]
[1757029154269,0.001,110930.0,110920.0,1.0055138]
[1757029154472,0.001,110930.0,110920.0,1.9227002]
[1757029156377,0.001,110930.0,110920.0,1.90450916]
[1757029157568,0.001,110930.0,110920.0,1.64361134]
[1757029158178,0.001,110930.0,110920.0,1.99361134]
[1757029158374,0.0002,110940.0,110930.0,0.1079483]
[1757029158575,0.01413,110950.0,110930.0,1.55629224]
[1757029158776,0.03728,110950.0,110940.0,0.27347394]
[1757029158977,0.03708,110950.0,110940.0,0.27347394]
[1757029160169,0.03708,110950.0,110940.0,1.10035394]
[1757029160567,0.04108,110950.0,110940.0,1.10135394]
[1757029161182,0.04308,110950.0,110940.0,0.27547394]
[1757029161479,0.04308,110950.0,110940.0,1.10231394]
[1757029164581,0.04308,110950.0,110940.0,1.46311394]
[1757029165780,0.04308,110950.0,110940.0,1.20245]
[1757029166085,0.04308,110950.0,110940.0,1.46299394]
[1757029166875,0.04308,110950.0,110940.0,0.63627394]
[1757029167075,0.04308,110950.0,110940.0,1.46299394]
[1757029167475,0.04308,110950.0,110940.0,1.46295394]
[1757029168385,0.04308,110950.0,110940.0,1.46291394]
[1757029169283,0.04308,110950.0,110940.0,1.20225]
[1757029170290,0.04308,110950.0,110940.0,1.46291394]
[1757029170484,0.01993,110950.0,110940.0,1.46291394]
[1757029170688,0.01993,110950.0,110940.0,0.63627394]
[1757029170881,0.01993,110950.0,110940.0,1.46287394]
[1757029172785,0.04308,110950.0,110940.0,1.46287394]
[1757029173689,0.01993,110950.0,110940.0,1.55300404]
[1757029173993,0.006,110950.0,110940.0,1.55300404]
[1757029175789,0.006,110950.0,110940.0,1.80300404]
[1757029175986,0.006,110950.0,110940.0,2.15380273]
[1757029176190,0.006,110950.0,110940.0,1.89313879]
[1757029176489,0.006,110950.0,110940.0,0.72640869]
[1757029176689,0.55373394,110950.0,110940.0,0.01481]
[1757029176895,0.91453394,110950.0,110940.0,0.82844]
[1757029177693,0.91453394,110950.0,110940.0,0.002]
[1757029177896,0.91453394,110950.0,110940.0,0.82844]
[1757029178285,0.91453394,110950.0,110940.0,0.002]
[1757029178585,0.91453394,110950.0,110940.0,0.7134]
[1757029180490,1.17519788,110950.0,110940.0,0.002]
[1757029190897,0.03419,110930.0,110920.0,0.0001]
[1757029191203,0.03419,110910.0,110900.0,0.10019133]
[1757029191397,0.55551788,110910.0,110900.0,0.10009133]
[1757029192104,0.55451788,110910.0,110900.0,0.10009133]
[1757029192608,0.29385394,110910.0,110900.0,0.10009133]
[1757029192806,0.29585394,110910.0,110900.0,0.10109133]
[1757029193299,0.29385394,110910.0,110900.0,0.10109133]
[1757029193898,0.29685394,110910.0,110900.0,0.10209133]
[1757029194206,0.55751788,110910.0,110900.0,0.10209133]
[1757029200014,0.91831788,110910.0,110900.0,0.10209133]
[1757029200813,0.39699,110910.0,110900.0,0.10209133]
[1757029201007,0.91831788,110910.0,110900.0,0.09185653]
[1757029201616,0.91831788,110910.0,110900.0,0.07584653]
[1757029204317,0.39699,110910.0,110900.0,0.09665653]
[1757029204717,0.65765394,110910.0,110900.0,0.09665653]
[1757029205215,0.91831788,110910.0,110900.0,0.09665653]
[1757029206216,0.91831788,110910.0,110900.0,0.10644738]
[1757029208808,0.55751788,110910.0,110900.0,0.10644738]
[1757029209010,0.91831788,110910.0,110900.0,0.10644738]
[1757029215210,0.55751788,110910.0,110900.0,0.10644738]
[1757029215415,0.91831788,110910.0,110900.0,0.10644738]
[1757029215719,0.55751788,110910.0,110900.0,0.10644738]
[1757029215913,0.91831788,110910.0,110900.0,0.10644738]
[1757029216313,0.55751788,110910.0,110900.0,0.10644738]
[1757029217122,0.91831788,110910.0,110900.0,0.10644738]
[1757029217621,0.9188215,110910.0,110900.0,0.10644738]
[1757029219828,0.5580215,110910.0,110900.0,0.10644738]
[1757029220025,0.9188215,110910.0,110900.0,0.10644738]
[1757029220419,0.9188215,110910.0,110900.0,0.07584653]
[1757029220619,1.42973725,110910.0,110900.0,0.07584653]
[1757029220823,2.25557725,110910.0,110900.0,0.07584653]
[1757029222634,1.42973725,110910.0,110900.0,0.07584653]
[1757029222927,2.25557725,110910.0,110900.0,0.07584653]
[1757029227534,2.25557725,110910.0,110900.0,0.06884653]
[1757029227842,2.25557725,110910.0,110900.0,0.002]
[1757029230235,0.01309,110890.0,110880.0,1.89950484]
[1757029230427,0.8957215,110890.0,110880.0,1.89940484]
[1757029231531,0.9182115,110890.0,110880.0,0.15728484]
[1757029232033,0.9192115,110890.0,110880.0,0.15828484]
[1757029232834,0.9182115,110890.0,110880.0,0.15728484]
[1757029233036,0.9232115,110890.0,110880.0,0.15828484]
[1757029233932,0.9222115,110890.0,110880.0,0.15728484]
[1757029234138,0.9242115,110890.0,110880.0,0.15728484]
[1757029234436,0.9242115,110890.0,110880.0,0.1476]
[1757029234933,0.01309,110880.0,110870.0,0.03316649]
[1757029235134,0.01309,110880.0,110870.0,0.0932]
[1757029235135,0.9182115,110880.0,110870.0,0.0932]
[1757029236435,0.9212115,110880.0,110870.0,0.0942]
[1757029236733,0.9212115,110880.0,110870.0,0.0242]
[1757029236928,0.9212115,110880.0,110870.0,0.3342]
[1757029237131,0.9212115,110880.0,110870.0,0.1142]
[1757029237330,0.9222115,110880.0,110870.0,0.1142]
[1757029238241,0.9222115,110880.0,110870.0,0.12415952]
[1757029238540,1.18312725,110880.0,110870.0,0.01095952]
[1757029238741,1.18312725,110880.0,110870.0,0.001]
[1757029244642,2.00876725,110880.0,110870.0,0.001]
[1757029244940,1.18312725,110880.0,110870.0,0.001]
[1757029245147,2.00872725,110880.0,110870.0,0.001]
[1757029247145,0.03472,110860.0,110850.0,0.8169]
[1757029247346,1.17826725,110860.0,110850.0,1.1268]
[1757029247845,1.17826725,110860.0,110850.0,1.13666414]
[1757029248246,0.9173515,110860.0,110850.0,1.13666414]
[1757029248744,0.9183515,110860.0,110850.0,1.13766414]
[1757029249148,0.9193515,110860.0,110850.0,1.13866414]
[1757029250240,1.18026725,110860.0,110850.0,1.13866414]
[1757029250742,1.18026725,110860.0,110850.0,0.82866414]
[1757029252547,1.18026725,110860.0,110850.0,0.002]
[1757029252747,2.00582725,110860.0,110850.0,0.002]
[1757029258353,0.03472,110850.0,110840.0,0.24319369]
[1757029258654,0.9173515,110850.0,110840.0,0.24319369]
[1757029259753,0.9183515,110850.0,110840.0,0.24419369]
[1757029260053,0.9183515,110850.0,110840.0,0.08223184]
[1757029260443,0.9173515,110850.0,110840.0,0.08123184]
[1757029260750,0.01352,110840.0,110830.0,0.77618185]
[1757029260956,0.9173515,110840.0,110830.0,0.77618185]
[1757029261253,2.4173515,110840.0,110830.0,0.78589316]
[1757029262444,2.4203515,110840.0,110830.0,0.78589316]
[1757029262645,2.4253515,110840.0,110830.0,0.78589316]
[1757029263050,2.68626725,110840.0,110830.0,0.78589316]
[1757029263250,2.68626725,110840.0,110830.0,0.84197965]
[1757029265153,1.90352,110840.0,110830.0,0.24985965]
[1757029265351,2.68626725,110840.0,110830.0,0.24985965]
[1757029267360,2.68626725,110840.0,110830.0,0.24014834]
[1757029267554,2.68626725,110840.0,110830.0,0.16647185]
[1757029267752,1.90352,110840.0,110830.0,0.16647185]
[1757029267952,2.68626725,110840.0,110830.0,0.16647185]
[1757029268158,2.68626725,110840.0,110830.0,0.00451]
[1757029268450,3.51174725,110840.0,110830.0,0.00451]
[1757029268654,2.00674725,110840.0,110830.0,0.00451]
[1757029268854,2.00974725,110840.0,110830.0,0.00451]
[1757029269055,2.01274725,110840.0,110830.0,0.00451]
[1757029271358,2.01278725,110840.0,110830.0,0.00451]
[1757029277163,0.01284,110820.0,110810.0,0.03106736]
[1757029277356,1.17752725,110820.0,110810.0,0.36096736]
[1757029277557,0.91752854,110820.0,110810.0,0.36096736]
[1757029278363,0.91852854,110820.0,110810.0,0.36096736]
[1757029278566,1.54852854,110820.0,110810.0,0.36096736]
[1757029278767,1.92152854,110820.0,110810.0,0.36096736]
[1757029279559,1.92152854,110820.0,110810.0,0.33996736]
[1757029279966,1.92152854,110820.0,110810.0,0.36096736]
[1757029279967,1.56072854,110820.0,110810.0,0.36096736]
[1757029280169,1.29935427,110820.0,110810.0,0.36096736]
[1757029281368,1.29935427,110820.0,110810.0,0.68186374]
[1757029282366,1.56072854,110820.0,110810.0,0.68186374]
[1757029282554,1.29935427,110820.0,110810.0,0.68186374]
[1757029283463,1.29935427,110820.0,110810.0,1.50742374]
[1757029284659,1.29935427,110820.0,110810.0,0.68186374]
[1757029284958,1.29935427,110820.0,110810.0,1.50738374]
[1757029287074,1.66015427,110820.0,110810.0,1.50738374]
[1757029288182,1.29935427,110820.0,110810.0,1.50738374]
[1757029288672,1.03798,110820.0,110810.0,1.50738374]
[1757029288864,1.29935427,110820.0,110810.0,1.50738374]
[1757029289380,1.03798,110820.0,110810.0,1.50738374]
[1757029289674,1.29935427,110820.0,110810.0,1.50738374]
[1757029292277,1.66015427,110820.0,110810.0,1.50738374]
[1757029292477,1.29935427,110820.0,110810.0,1.50738374]
[1757029293582,1.66015427,110820.0,110810.0,1.50738374]
[1757029293877,1.66015427,110820.0,110810.0,1.50734374]
[1757029296573,1.66015427,110820.0,110810.0,0.68186374]
[1757029296776,1.66015427,110820.0,110810.0,1.50734374]
[1757029298774,1.66015427,110820.0,110810.0,0.68186374]
[1757029298977,1.66015427,110820.0,110810.0,1.50734374]
[1757029299282,1.92152854,110820.0,110810.0,1.50734374]
[1757029299981,1.92152854,110820.0,110810.0,1.50730374]
[1757029301877,1.92152854,110820.0,110810.0,0.42189638]
[1757029302086,2.17152854,110820.0,110810.0,0.99633638]
[1757029302382,2.17152854,110820.0,110810.0,0.17089638]
[1757029303386,2.17152854,110820.0,110810.0,0.07089638]
[1757029303577,3.67152854,110820.0,110800.0,0.83497243]
[1757029303780,0.63501427,110810.0,110800.0,1.17597243]
[1757029304075,1.66501427,110810.0,110800.0,1.17597243]
[1757029304484,1.91501427,110810.0,110800.0,1.15497243]
[1757029304877,3.41501427,110810.0,110800.0,1.15497243]
[1757029305482,3.41701427,110810.0,110800.0,1.15497243]
[1757029305786,1.91701427,110810.0,110800.0,1.22589686]
[1757029305985,1.93939427,110810.0,110800.0,0.40045686]
[1757029306186,1.93939427,110810.0,110800.0,1.22585686]
[1757029306684,1.94039427,110810.0,110800.0,1.22585686]
[1757029307080,1.94039427,110810.0,110800.0,0.90585686]
[1757029312695,1.94039427,110810.0,110800.0,0.83493243]
[1757029313684,1.31039427,110810.0,110800.0,1.10638243]
[1757029313889,1.63039427,110810.0,110800.0,1.45638243]
[1757029315287,1.63039427,110810.0,110800.0,1.52788436]
[1757029317194,0.66039427,110810.0,110800.0,1.17788436]
[1757029317385,1.66039427,110810.0,110800.0,1.52788436]
[1757029319486,1.39902,110810.0,110800.0,1.52788436]
[1757029319684,1.29959427,110810.0,110800.0,1.52788436]
[1757029319881,1.03822,110810.0,110800.0,1.52788436]
[1757029320094,1.29959427,110810.0,110800.0,1.52788436]
[1757029320288,1.03822,110810.0,110800.0,2.15005863]
[1757029320489,1.003,110810.0,110800.0,2.15305863]
[1757029320889,1.003,110810.0,110800.0,2.24330293]
[1757029321397,1.003,110810.0,110800.0,1.99330293]
[1757029321896,0.996,110810.0,110800.0,2.33355156]
[1757029322092,0.989,110810.0,110800.0,2.33355156]
[1757029322293,0.989,110810.0,110800.0,1.50815156]
[1757029322496,0.989,110810.0,110800.0,2.33347156]
[1757029322892,0.982,110810.0,110800.0,2.33347156]
[1757029323100,0.976,110810.0,110800.0,2.33347156]
[1757029323595,0.11754604,110810.0,110800.0,2.90347156]
[1757029323800,0.01352,110840.0,110830.0,0.0902199]
[1757029324000,0.91,110840.0,110830.0,1.88767417]
[1757029324198,0.91,110840.0,110830.0,2.13767417]
[1757029324588,0.91,110840.0,110830.0,1.31239417]
[1757029324797,0.92352,110840.0,110830.0,2.13767417]
[1757029325200,0.92952,110840.0,110830.0,2.13767417]
[1757029325390,0.916,110840.0,110830.0,2.13767417]
[1757029325591,0.916,110840.0,110830.0,1.0510199]
[1757029325794,0.919,110840.0,110830.0,1.8772599]
[1757029326101,0.919,110840.0,110830.0,2.13863417]
[1757029326301,0.919,110840.0,110830.0,2.22885837]
[1757029326704,0.919,110840.0,110830.0,2.55885837]
[1757029328194,0.919,110840.0,110830.0,2.67677673]
[1757029329000,0.919,110840.0,110830.0,2.70677673]
[1757029329403,0.89670816,110840.0,110830.0,2.968151]